Cogmind - Beta 14 @@@ ROGUE MODE // 2025.03.13 @ 12:34:02 Player: ywiktor Result: Destroyed by AN-YVS(R) with Subdweller Laser Performance ------------- Evolutions (0) 0 Regions Visited (2) 400 Robots Destroyed (23) 115 Value Destroyed (524) 524 Prototype IDs (3) 60 Alien Tech Used (0) 0 Bonus (0) 0 TOTAL SCORE: 1099 Bonus ------- None Cogmind --------- Core Integrity 0/250 Matter 186/300 Energy 250/250 System Corruption 0% Temperature Cool (6) Movement Walking (190) Ox1 Location -10/Subcaves Parts ------- > --- POWER (1) -------- Ion Engine > --- PROPULSION (2) --- Aluminum Leg Aluminum Leg > --- UTILITY (2) ------ Large Storage Unit Makeshift Light Armor Plating > --- WEAPON (2) ------- Heavy Assault Rifle Heavy Assault Rifle > --- INVENTORY (15) --- Improved Aluminum Leg Medium Storage Unit Makeshift System Shield EM Shotgun EM Shotgun Subdweller Laser Peak State ------------ > --- POWER ------------ Subdweller Power Source > --- PROPULSION ------- Improved Aluminum Leg Improved Aluminum Leg > --- UTILITY ---------- Medium Storage Unit Makeshift Light Armor Plating > --- WEAPON ----------- Grenade Launcher Subdweller Shrapnel Launcher > --- INVENTORY -------- Ion Engine Aluminum Leg Aluminum Leg Improved Aluminum Leg Large Storage Unit Makeshift System Shield EM Shotgun EM Shotgun Heavy Assault Rifle Heavy Assault Rifle [Rating: 15] Favorites ----------- Power Light Ion Engine Engine Light Ion Engine Propulsion Improved Aluminum Leg Leg Improved Aluminum Leg Utility Medium Storage Unit Storage Medium Storage Unit Protection Weapon Shielding Weapon Heavy Assault Rifle Energy Gun Subdweller Laser Ballistic Gun Heavy Assault Rifle Launcher Grenade Launcher Build | -11 -10 -10 ------- Run | Yrd Mat Sub Slots Evolved . | . . . Power . | . . . Propulsion . | . . . Utility . | . . . Weapon . | . . . Parts Attached 29 | 6 11 12 Power 5 | 1 2 2 Engine 5 | 1 2 2 Core . | . . . Reactor . | . . . Propulsion 7 | 2 2 3 Treads . | . . . Leg 7 | 2 2 3 Wheel . | . . . Hover . | . . . Flight . | . . . Utility 6 | 1 3 2 Device . | . . . Storage 3 | 1 1 1 Processor . | . . . Hackware . | . . . Protection 3 | . 2 1 Artifact . | . . . Weapon 11 | 2 4 5 Energy Gun 2 | 1 . 1 Energy Cannon . | . . . Ballistic Gun 7 | 1 4 2 Ballistic Cannon . | . . . Launcher 2 | . . 2 Special Weapon . | . . . Impact Weapon . | . . . Slashing Weapon . | . . . Piercing Weapon . | . . . Special Melee Weapon . | . . . Unidentified Prototypes . | . . . Parts Lost 4 | . . 4 Power . | . . . Propulsion 2 | . . 2 Utility . | . . . Weapon 2 | . . 2 Highest Loss Streak 2 | . . 2 To Critical Strikes . | . . . Average Slot Usage (%) 98 | . 99 96 Engine 14 | . 14 14 Leg 27 | . 28 27 Storage 14 | . 14 14 Protection 13 | . 13 14 Energy Gun 1 | . . 2 Ballistic Gun 18 | . 27 7 Launcher 7 | . . 15 Peak Build Rating 15 | 6 12 15 Average Rating 11 | 3 9 13 On Entrance 6 | . 6 12 Naked Turns . | . . . Heaviest Build 35 | 14 20 35 Greatest Support 26 | 20 26 26 Greatest Overweight (x) 3 | 3 . 1 Average Overweight (x) . | . . . Largest Inventory Capacity 15 | 8 10 15 Average Capacity 9 | 7 8 10 Most Carried 10 | 6 10 10 Average Carried 8 | 3 8 9 Final Capacity 15 | 8 10 15 Final Carried 10 | 6 10 6 Class Distribution -------------------- 100% | Mutant Dominant Class ---------------- Mutant | -10/Materials Mutant | -10/Subcaves Resources | -11 -10 -10 ----------- Run | Yrd Mat Sub Matter Collected 738 | 260 218 260 Remotely . | . . . Salvage Created 472 | . 315 157 Parts 29 | . 15 14 Haulers Intercepted . | . . . Recyclers Shooed 2 | . 2 . Parts Field Recycled . | . . . Retrieved Matter . | . . . Parts Self-Destructed 6 | . . 6 Prevented . | . . . Kills | -11 -10 -10 ------- Run | Yrd Mat Sub Combat Hostiles Destroyed 21 | . 10 11 Guns 10 | . 10 . AOE 11 | . . 11 Classes Destroyed 4 | . 2 2 Turret 2 | . . 2 Swarmer 12 | . 5 7 Grunt 7 | . 5 2 Subdweller 2 | . . 2 Best Kill Streak 10 | . 3 10 Combat Bots Only 10 | . 3 10 Max Kills in Single Turn 3 | . 1 3 Gunslinging . | . . . Exploded 3 | . . 3 Melee . | . . . Uniques/NPCs Destroyed . | . . . Combat | -11 -10 -10 -------- Run | Yrd Mat Sub Hostile Shots Fired 135 | . 58 77 Missed 45 | . 13 32 Damage Taken 1427 | . 468 959 Core 261 | . 91 170 Absorbed by Shields . | . . . Redirected to Shielding 36 | . 30 6 Core Remaining (%) 100 | 100 . . Volleys Fired 63 | . 37 26 Largest 2 | . 2 2 Hottest 70 | . 70 70 Shots Fired 116 | . 74 42 Gun 102 | . 74 28 Cannon . | . . . Launcher 14 | . . 14 Special . | . . . Kinetic 99 | . 68 31 Thermal 6 | . 6 . Explosive 11 | . . 11 Electromagnetic . | . . . Robot Hit Streak 6 | . 5 6 Robot Miss Streak 4 | . 4 3 Penetration Max . | . . . Secondary Targets 2 | . 2 . Max Gunslinging Chain 1 | . 1 . Shots Hit Robots 67 | . 41 26 Core Hits 37 | . 15 22 Critical Kills . | . . . Critical Parts Destroyed . | . . . Critical Strikes . | . . . Melee Attacks . | . . . Impact . | . . . Slashing . | . . . Piercing . | . . . Sneak Attacks . | . . . Combat Hostiles . | . . . Follow-up Attacks . | . . . Damage Inflicted 1677 | . 466 1211 Guns 759 | . 466 293 Cannons . | . . . Explosions 918 | . . 918 Melee . | . . . Ramming . | . . . Kinetic 1034 | . 429 605 Thermal 37 | . 37 . Explosive 606 | . . 606 Electromagnetic . | . . . Impact . | . . . Slashing . | . . . Piercing . | . . . Highest Corruption . | . . . Average Corruption . | . . . Corruption Purged . | . . . Corruption Blocked . | . . . Overload Shots . | . . . Overflow Damage 14 | . . 14 Projectiles . | . . . Explosions 14 | . . 14 Melee . | . . . Knockbacks . | . . . Impact . | . . . Kinetic . | . . . Secondary . | . . . Self-Inflicted Damage 103 | . . 103 Shots 5 | . . 5 Rammed . | . . . Targets Rammed . | . . . Kicked . | . . . Crushed . | . . . Highest Temperature 36 | . 36 . Average Temperature 10 | . 10 . Received Heat Transfer 336 | . 150 186 Siege Activations . | . . . Robots Corrupted . | . . . Combat Hostiles . | . . . Parts Fried . | . . . Impact Corruptions . | . . . Robots Melted . | . . . Combat Hostiles . | . . . Parts Melted 1 | . 1 . Heat Transferred 111 | . 111 . Parts Sabotaged . | . . . Parts Stolen . | . . . Parts Stripped . | . . . Power Chain Reactions . | . . . Alert | -11 -10 -10 ------- Run | Yrd Mat Sub Peak Influence 208 | . 208 . Initial . | . . . Average 51 | . 54 . Maximum Alert Level 1 | . 1 . Low Security (%) 96 | 100 96 . Level 1 3 | . 3 . Level 2 . | . . . Level 3 . | . . . Level 4 . | . . . Level 5 . | . . . High Security . | . . . Max Security . | . . . Squads Dispatched 2 | . 2 . Investigation 2 | . 2 . Extermination . | . . . Reinforcement . | . . . Assault . | . . . Garrison . | . . . Intercept . | . . . Searches Triggered . | . . . Construction Impeded . | . . . Haulers Reinforced . | . . . Active Scanning Responses . | . . . Cargo Convoy Interrupts . | . . . Stealth | -11 -10 -10 --------- Run | Yrd Mat Sub Distress Signals 1 | . 1 . Communications Jammed . | . . . Distress Signals . | . . . Times Spotted 38 | . 21 17 Peak Tracking Total 3 | . 3 3 Tactical Retreats 5 | . 2 3 Traps | -11 -10 -10 ------- Run | Yrd Mat Sub Traps Triggered 9 | . 3 6 Indirectly . | . . . Trap Hack Attempts . | . . . Triggered . | . . . Disarmed . | . . . Reprogrammed . | . . . Reused . | . . . Traps Extracted . | . . . Installed . | . . . Triggered . | . . . Machines | -11 -10 -10 ---------- Run | Yrd Mat Sub Machines Disabled 4 | . . 4 Max in Single Turn 2 | . . 2 Machines Repaired . | . . . Machines Dismantled . | . . . Machines Sabotaged . | . . . Overloaded Fab Kills . | . . . Hacking | -11 -10 -10 --------- Run | Yrd Mat Sub Machines Accessed 7 | . 7 . Terminals 7 | . 7 . Fabricators . | . . . Repair Stations . | . . . Recycling Units . | . . . Scanalyzers . | . . . Garrison Access . | . . . Total Hacks 16 | . 16 . Successful 11 | . 11 . Failed 5 | . 5 . Catastrophic . | . . . Database Lockouts . | . . . Manual 13 | . 13 . Terminals 16 | . 16 . Fabricators . | . . . Repair Stations . | . . . Recycling Units . | . . . Scanalyzers . | . . . Garrison Access . | . . . Terminal Hacks 6 | . 6 . Robot Analysis 2 | . 2 . Prototype ID Bank 2 | . 2 . Hauler Manifests 1 | . 1 . Zone Layout 1 | . 1 . Fabricator Hacks . | . . . Repair Station Hacks . | . . . Recycling Unit Hacks . | . . . Scanalyzer . | . . . Garrison Access Hacks . | . . . Unauthorized Hacks 5 | . 5 . Terminals 5 | . 5 . Botnet 4 | . 4 . Operators 1 | . 1 . Fabricators . | . . . Repair Stations . | . . . Recycling Units . | . . . Scanalyzers . | . . . Garrison Access . | . . . Data Cores Recovered . | . . . Used . | . . . Hacking Detections 6 | . 6 . Full Trace Events . | . . . Feedback Events . | . . . Feedback Blocked . | . . . Robot Schematics Acquired . | . . . Robots Built . | . . . Authchips . | . . . Time . | . . . Total Robot Build Rating . | . . . Part Schematics Acquired . | . . . Parts Built . | . . . Authchips . | . . . Time . | . . . Total Part Build Rating . | . . . Parts Repaired . | . . . Time . | . . . Parts Recycled . | . . . Recycled Matter . | . . . Retrieved Matter . | . . . Retrieved Components . | . . . Parts Scanalyzed . | . . . Part Schematics Acquired . | . . . Parts Damaged . | . . . Bothacking | -11 -10 -10 ------------ Run | Yrd Mat Sub Used RIF Installer . | . . . Robots Hacked . | . . . Non-combat . | . . . Combat . | . . . Robot Hacks Applied . | . . . Relay Couplers Released . | . . . Fabnet Peak Effective % . | . . . Robots Rewired . | . . . Allies Hacked . | . . . Hacks Repelled . | . . . Allies | -11 -10 -10 -------- Run | Yrd Mat Sub Total Allies . | . . . Largest Group . | . . . Highest-Rated Group . | . . . Highest-Rated Ally . | . . . Total Orders . | . . . Ally Attacks . | . . . Total Damage . | . . . Kills . | . . . Allies Corrupted . | . . . Allies Melted . | . . . Intel | -11 -10 -10 ------- Run | Yrd Mat Sub Robot Analysis Total 2 | . 2 . Derelict Logs Recovered 2 | . . 2 Drone Launches . | . . . Drone Recoveries . | . . . Exploration | -11 -10 -10 ------------- Run | Yrd Mat Sub Turns Passed 2740 | 87 1410 1243 Spaces Moved 1677 | 58 830 789 Core 26 | 26 . . Treads . | . . . Legs 1651 | 32 830 789 Wheels . | . . . Hover . | . . . Flight . | . . . Fastest Speed 50 | 50 120 120 Average Speed 131 | 122 120 145 Slowest Speed 200 | 200 120 190 Overloaded Moves . | . . . Propulsion Burnouts . | . . . Robots Hopped . | . . . Cave-ins Triggered . | . . . Exploration Rate (%) 45 | 5 98 33 Regions Visited 2 Branch Regions 1 Pre-discovered Areas 1 | . . 1 Known Exits Taken . | . . . Unknown Exits Taken 2 | 1 1 . Scrap Searched 5 | . . 5 Spaces Dug . | . . . Terrain Destroyed 78 | . . 78 Melee . | . . . Projectile . | . . . AOE 78 | . . 78 Terrain Rammed . | . . . Walls Destroyed . | . . . Machines Disabled . | . . . Actions | -11 -10 -10 --------- Run | Yrd Mat Sub Total 2093 | 73 1184 836 Wait 275 | . 274 1 Move 1675 | 57 829 789 Hop . | . . . Pick Up 27 | 10 15 2 Fast Attach 7 | 2 2 3 Attach 8 | 4 . 4 Detach . | . . . Swap 14 | . 9 5 Drop 24 | . 18 6 Fire 63 | . 37 26 Melee . | . . . Ram . | . . . Kick . | . . . Crush . | . . . Escape Stasis . | . . . Rewire . | . . . Trap . | . . . Miscellaneous . | . . . Route ------- -11/Scrapyard -10/Materials (discovered 5 exits: [*Mat x3] / [*Min] / [*Sub]) -10/Subcaves (discovered 1 exit: [*Mat]) History --------- Turn | Location | Event 23 | -11/Scrapyard | Discovered new exit (range 15) 88 | -11/Scrapyard | Entered Materials 317 | -10/Materials | Build established: Mutant 519 | -10/Materials | Discovered new exit (range 8) 631 | -10/Materials | Discovered new exit (range 7) 891 | -10/Materials | Discovered new exit (range 5) 1042 | -10/Materials | Discovered new exit (range 16) 1477 | -10/Materials | Discovered new exit (range 8) 1498 | -10/Materials | Entered Subcaves 1502 | -10/Subcaves | Learned Materials stockpile data 1524 | -10/Subcaves | Discovered new exit (range 5) 1642 | -10/Subcaves | Core integrity fell below 50% 2151 | -10/Subcaves | Learned location of Storage (-7) 2215 | -10/Subcaves | Ambushed by Subdweller buried in earth 2259 | -10/Subcaves | Destroyed 10 combat bots 2687 | -10/Subcaves | Core integrity fell below 20% 2741 | -10/Subcaves | Destroyed by AN-YVS(R) with Subdweller Laser Last Messages --------------- 02314_ Triggered Piercing Trap. 02314_ Spikes shoot up from the floor. 02314_ Critical hit (Impale). 02314_ Grenade Launcher destroyed. 02351_ Triggered Piercing Trap. 02351_ Spikes shoot up from the floor. 02351_ Critical hit (Impale). 02353_ Subatomizers dissect the Sub. Optics. 02415_ Acquired 10 matter. 02461_ Sub. Power Source shoots sparks and powers down. 02464_ Dropped Broken Sub. Power Source. 02608_ Acquired 20 matter. 02675_ Imp. Aluminum Leg destroyed. 02679_ Machine disabled. 02682_ Autobeam Turret destroyed. 02682_ Machine disabled. 02692_ Autobeam Turret destroyed. 02704_ Imp. Aluminum Leg destroyed. Map ----- +----------------------------------------------------+ | ???????# ## & #???????####?##^ ^ #?## | | ???????# ####????## ###^ ^ #??## | | ???????# ###### ###" ##???## | | ???????## ## ## ##???######## | | ????????# "#### ??????# | | ????????# ""## ???????? | | ????????# #### # ###" ## ??????????? | | ???????## ##??######?##" ## ????????????? | | ???????# #?????####??## # #?????????????? | | ???????## #??#### #?### #?????????????? | | ????????# #?## ### #?????????????? | | ????????# #?# ### & #?????????????? | | ????????# ### ## ## #?????????????? | | ????????# ## #### #?????????????? | | ????????## ##### ##?# ##????????????? | | ?????????## ##???## ### ##???????????? | | ??????????# ##????# ## #???????????? | | ??????????# ##????# ### ##???????????? | | ??????????## #????## ##?## ##????????????? | | ???????????## ###?## #???###?????????????? | | ????????????## ### ###???????????????????? | | ?????????????## ### ### #?????????????????????? | | ??????????????###?# ## ##????????????????????? | | ??????????????????## #### #????????????????????? | | ???????????????????####?# ##????????????????????? | | ????????????????????????#@ #?????????????????????? | | ????????????????????????# #?????????????????????? | | ????????????????????????# ##????????????????????? | | ????????????????????????## #????????????????????? | | ????????????????????????##R###???????????????????? | | ????????????"?"?????????# # #???????????????????? | | ??????????#" " " ??#?### #???????????????????? | | ??????????# # # ## ##???????????????????? | | ??????????# % % #???????????????????? | | ??????????# % #???????????????????? | | ??????????# % #???????????????????? | | ???????????### # # #??????????????????? | | ????????????# ??## # ##??????????????????? | | ?????????????????#"# ! ;##???????????????????? | | ???????????????? " " & # ????????????????????? | | ?????????????? % #???????????????????? | | ????????????? #???????????????????? | | ????????????##?# " " #"#???????????????????? | | ??????????????# ##""#"""# ##???????????????????? | | ?????????????? ??######## ?????????????????????? | | ????????????? ??????????# ?????????????????????? | | ????????????????????????# ????????????????????? | | ????????????????????????# ????????????????????? | | ????????????????????????# #????????????????????? | | ????????????????????????? ?????????????????????? | +----------------------------------------------------+ Best States ------------- Heat Dissipation 25 Energy Generation 15 Energy Capacity 250 Matter Stores 300 Matter Capacity 300 Sight Range 16 Terrain Scan Density 10 Armor Coverage 100 Power Shielding 33 Weapon Shielding 33 Evasion (%) 55 Item Schematics ----------------- None Robot Schematics ------------------ None Fabricated ------------ Nothing Alien Tech Used ----------------- None Achievements -------------- None Challenges ------------ None Game ------ Seed LayeredTripodChip Manual? 0 Play Time 00:19:34 Cumulative 61.1 hours Start 2025.03.13 @ 12:17:19 End 2025.03.13 @ 12:34:02 Sessions 1 Manual Loads 0 Difficulty Rogue Special Mode None Game No. 60 Rogue 60 Adventurer 0 Explorer 0 Win Type - Total 1 Types 1/0/0/0/0/0/0/0/0 Lore% 30 Gallery% 43 Achievement% 41 Wizard Run 0 Options --------- Layout 1 ASCII 0 Keyboard 1 Movement Numpad Keybinds 0 Fullscreen 1 Font 24/Smallcaps Map View 50x35 Zoom Use 0% Tactical HUD 1 Map Filters NONE Filters NONE Steam 1 RUN: 704667dc-b204-4c50-89e8-c0f95de2e95d